Cogmind - Beta 16 @@@ ROGUE MODE // 2025.11.19 @ 10:54:29 Player: ChromeKnight Result: Self-destructed Performance ------------- Evolutions (8) 4000 Regions Visited (24) 4800 Robots Destroyed (130) 650 Value Destroyed (8468) 8468 Prototype IDs (70) 1400 Alien Tech Used (5) 1000 Bonus (9342) 9342 TOTAL SCORE: 29660 Bonus ------- High Alert Combat Kills 1070 Follower Combat Kills 3046 Network Hubs Disabled 200 Registered with UFD 300 Met Optimus in HQ 500 Met Data Miner 300 Met Zhirov 300 Built Enhanced Grunts 300 Met R17 at Cetus 500 Found Hidden Lab 3000 Met R17 at Research 2000 Pursued by Intercept 1000 Met Optimus at Protoforge 1000 Friendly Fire -4174 Cogmind --------- Core Integrity 142/1450 Matter 215/300 Energy 540/540 System Corruption 19% Temperature Cool (0) Movement Walking (110) Location -2/Protoforge Parts ------- > --- POWER (2) -------- Light Quantum Reactor > --- PROPULSION (5) --- Myomer Leg Myomer Leg Enhanced Biometal Leg Enhanced Biometal Leg > --- UTILITY (14) ----- Experimental Heat Sink Experimental Heat Sink Energy Well Experimental Optical Array Experimental Targeting Computer Experimental Armor Integrity Analyzer Experimental Weapon Cycler Makeshift Medium Armor Plating Makeshift Medium Armor Plating Makeshift Medium Armor Plating Graphene Brace > --- WEAPON (2) ------- (None) > --- INVENTORY (5) ---- Experimental Heat Sink Potential Cannon Peak State ------------ > --- POWER ------------ Particle Reactor Particle Reactor > --- PROPULSION ------- Enhanced Biometal Leg Centrium Leg Myomer Exoskeleton > --- UTILITY ---------- Advanced Cryofiber Web Experimental Heat Sink Large Storage Unit Experimental Sensor Array Advanced Signal Interpreter Particle Accelerator Experimental Transmission Jammer Heavy Regenerative Plating Heavy Regenerative Plating System Mapper Quantum Router Quantum Router > --- WEAPON ----------- Compact HERF Cannon Warp Cannon > --- INVENTORY -------- Advanced Myomer Leg Advanced Myomer Leg Experimental Biometal Leg Experimental Power Amplifier Advanced Cooling System Experimental Energy Well Centrium Medium Armor Plating Centrium Medium Armor Plating Graphene Brace Transdimensional Reconstructor Enhanced Nova Cannon Enhanced Nova Cannon Cooled Nova Cannon Perforator [Rating: 213] Favorites ----------- Power Particle Reactor Engine Heavy Ion Engine Power Core Micro Fission Core Reactor Particle Reactor Propulsion Experimental Biometal Leg Treads Light Treads Leg Experimental Biometal Leg Wheel Compact Wheel Hover Unit Makeshift Hover Unit Utility Experimental Sensor Array Device Experimental Sensor Array Storage Medium Storage Unit Processor Improved Signal Interpreter Hackware Quantum Router Protection Centrium Medium Armor Plating Artifact LC Capacitor Weapon Spear Energy Gun Heavy Riot Gun Energy Cannon Cooled Phase Cannon Ballistic Gun Battle Rifle Ballistic Cannon Battle Cannon Launcher Point Singularity Launcher Special Weapon Improved Plasma Cutter Impact Weapon Maul Slashing Weapon Makeshift Axe Piercing Weapon Spear Build | -11 -10 -10 -8 -6 -6 -6 -6 -5 -5 -5 -5 -5 -4 -4 -4 -4 -4 -4 -3 -3 -3 -2 -2 -2 ------- Run | Yrd Mat Sub Scr Fac Low Low Dat Pro Fac Upp Upp Zhi Pro Fac Ext Cet Arc Hub Res Arm Lab Res Tes Frg Slots Evolved 16 | . . . . 8 . . . . 2 . . . . 2 . . . . 2 . . 2 . . Power 1 | . . . . 1 . . . . . . . . . . . . . . . . . . . . Propulsion 3 | . . . . 2 . . . . . . . . . . . . . . . . . 1 . . Utility 12 | . . . . 5 . . . . 2 . . . . 2 . . . . 2 . . 1 . . Weapon . | . . . . . . . . . . . . . . . . . . . . . . . . . Parts Attached 176 | 6 4 5 6 13 6 4 1 4 7 4 4 8 11 4 2 9 . . 3 6 14 3 7 45 Power 25 | 1 1 . 1 . 1 1 . 1 2 1 3 1 . 1 . 1 . . 1 . 2 . . 7 Engine 7 | 1 1 . 1 . . 1 . 1 1 . . . . . . . . . . . . . . 1 Core 5 | . . . . . 1 . . . 1 1 2 . . . . . . . . . . . . . Reactor 13 | . . . . . . . . . . . 1 1 . 1 . 1 . . 1 . 2 . . 6 Propulsion 38 | 2 1 . 2 6 1 . . 1 2 . . 4 5 . . 1 . . . . 1 . 2 10 Treads 2 | 2 . . . . . . . . . . . . . . . . . . . . . . . . Leg 22 | . . . 1 . . . . . . . . 3 5 . . 1 . . . . 1 . 2 9 Wheel 3 | . 1 . 1 . . . . . . . . . . . . . . . . . . . . 1 Hover 11 | . . . . 6 1 . . 1 2 . . 1 . . . . . . . . . . . . Flight . | . . . . . . . . . . . . . . . . . . . . . . . . . Utility 78 | 1 2 1 2 7 2 3 1 1 3 . . 3 2 3 1 5 . . 2 4 7 3 2 23 Device 30 | . . 1 1 1 1 2 . . . . . 1 1 1 1 3 . . 1 1 3 . . 12 Storage 8 | 1 1 . . 1 . . . . . . . 1 . . . . . . 1 . 1 . 1 1 Processor 10 | . 1 . 1 3 . . . . . . . . . . . . . . . . . 1 1 3 Hackware 7 | . . . . 2 . . . 1 2 . . . . . . . . . . . . 2 . . Protection 22 | . . . . . 1 1 1 . 1 . . 1 1 2 . 2 . . . 3 2 . . 7 Artifact 1 | . . . . . . . . . . . . . . . . . . . . . 1 . . . Weapon 35 | 2 . 4 1 . 2 . . 1 . 3 1 . 4 . 1 2 . . . 2 4 . 3 5 Energy Gun 10 | 2 . 2 . . . . . 1 . . . . . . . 1 . . . . 2 . . 2 Energy Cannon 10 | . . . . . . . . . . . . . 1 . 1 1 . . . 2 2 . 2 1 Ballistic Gun 3 | . . 1 . . . . . . . . . . . . . . . . . . . . . 2 Ballistic Cannon 3 | . . 1 . . . . . . . 1 . . . . . . . . . . . . 1 . Launcher 4 | . . . . . 1 . . . . . . . 3 . . . . . . . . . . . Special Weapon 2 | . . . . . . . . . . 1 1 . . . . . . . . . . . . . Impact Weapon 1 | . . . 1 . . . . . . . . . . . . . . . . . . . . . Slashing Weapon 1 | . . . . . . . . . . 1 . . . . . . . . . . . . . . Piercing Weapon 1 | . . . . . 1 . . . . . . . . . . . . . . . . . . . Special Melee Weapon . | . . . . . . . . . . . . . . . . . . . . . . . . . Unidentified Prototypes 46 | . 1 1 . . . 2 . . 2 . . 5 6 . . 5 . . . . 9 . 7 8 Corrupted Parts 1 | . . . . . . . . . . . . . . . . . . . . . 1 . . . System Corruption 4 | . . . . . . . . . . . . . . . . . . . . . 4 . . . Parts Lost 60 | . . . . 3 2 . . . 6 . . . . . . . . . . 1 1 . 8 39 Power 13 | . . . . 1 1 . . . 1 . . . . . . . . . . . 1 . 1 8 Propulsion 13 | . . . . 2 1 . . . 1 . . . . . . . . . . . . . . 9 Utility 25 | . . . . . . . . . 1 . . . . . . . . . . 1 . . 6 17 Weapon 9 | . . . . . . . . . 3 . . . . . . . . . . . . . 1 5 Highest Loss Streak 7 | . . . . 2 1 . . . 2 . . . . . . . . . . 1 1 . 5 7 To Critical Strikes . | . . . . . . . . . . . . . . . . . . . . . . . . . Average Backups 11 | . 9 19 19 10 9 9 9 10 9 9 10 10 9 9 10 9 10 10 10 14 12 12 13 6 Power . | . . 1 . . . . . . . . . . . . . . . . . 2 1 . . . Propulsion 2 | . 2 6 5 2 . . . . 1 1 1 . 1 3 3 3 3 3 3 2 2 . 2 1 Utility 6 | . 1 4 8 6 7 7 8 9 7 6 7 7 5 4 5 5 6 6 6 7 6 9 6 2 Weapon 2 | . 5 7 2 1 1 1 . 1 . . . . . . . . . . . 1 2 2 3 2 Tool/Special . | . . . . . . . . . . . . . . . . . . . . . . . . . Unused Backups 34 | . . 1 15 . . 4 . . 2 1 . . 2 . 1 1 . . . 2 1 . 1 3 Power 1 | . . . 1 . . . . . . . . . . . . . . . . . . . . . Propulsion 4 | . . . 4 . . . . . . . . . . . . . . . . . . . . . Utility 17 | . . . 3 . . 3 . . 2 1 . . 2 . 1 . . . . 2 1 . . 2 Weapon 9 | . . 1 6 . . . . . . . . . . . . . . . . . . . 1 1 Tool/Special 3 | . . . 1 . . 1 . . . . . . . . . 1 . . . . . . . . Average Slot Usage (%) 89 | . 90 98 84 89 89 82 83 88 95 89 100 89 96 99 99 100 100 100 94 91 90 90 80 77 Engine 4 | . 14 14 13 5 . 2 6 6 9 3 . . . . . . . . . . . . . . Reactor 3 | . . . . . . . . . . . 2 9 11 10 10 10 10 10 9 9 8 8 7 4 Treads 4 | . 27 14 9 . . . . . . . . . . . . . . . . . . . . . Leg 7 | . . . . . . . . . . . . 13 21 21 21 21 21 21 19 19 19 21 13 13 Wheel 3 | . . 14 18 . . . . . . . . . . . . . . . . . . . . . Hover 6 | . . . . 24 25 20 20 24 23 19 23 8 1 . . . . . . . . . . . Device 12 | . . 11 . 5 9 10 3 12 6 10 11 10 11 14 15 19 21 21 22 26 22 25 20 22 Storage 7 | . 14 14 14 6 6 6 6 6 5 5 5 5 5 5 5 5 5 5 4 4 4 4 4 5 Processor 10 | . 4 2 4 19 20 20 20 20 17 17 17 15 11 10 10 10 10 10 9 5 4 4 5 11 Hackware 7 | . . . . 12 8 6 6 6 16 17 17 17 17 15 15 10 10 10 9 9 9 12 11 5 Protection 3 | . . . . . . 1 9 . 3 . . . 4 9 10 10 10 10 9 6 11 4 7 7 Energy Gun 4 | . 28 10 . 6 4 1 3 4 3 . . . . . . . . . . . . . . . Energy Cannon 2 | . . . . . . . . . . . . . 3 5 4 5 5 5 4 6 8 8 7 2 Ballistic Gun 2 | . . 12 7 . . . . . . . . . . . . . . . . . . . . 1 Ballistic Cannon 1 | . . 4 7 . . . . . . . 4 . 2 . . . . . . . . . . . Launcher 1 | . . . . . 1 4 . . 1 . . . . 4 4 5 5 5 4 1 . . . . Piercing Weapon 1 | . . . . . 5 6 6 6 3 . . . . . . . . . . . . . . . Peak Build Rating 213 | 6 11 18 26 61 69 65 61 75 92 106 108 116 124 147 145 158 156 157 176 177 192 189 213 210 Average Rating 91 | 4 7 14 16 59 64 60 57 70 87 92 107 104 120 144 143 155 156 157 172 171 166 186 205 160 On Entrance 100 | . 6 11 17 26 56 55 61 54 75 83 106 108 116 124 145 143 156 156 157 176 167 168 189 167 Avg Prop Armor Cover (%) 10 | . 14 12 12 5 10 5 . . . . . 5 3 . . . . . . . . . . 9 Naked Turns . | . . . . . . . . . . . . . . . . . . . . . . . . . Heaviest Build 123 | 13 53 55 54 23 34 34 34 34 39 39 41 52 61 80 82 91 91 89 111 116 123 110 123 117 Greatest Support 150 | 40 40 16 26 41 48 36 36 47 47 46 46 90 118 112 112 112 112 112 112 114 120 148 150 150 Greatest Overweight (x) 3 | . 3 3 3 . 1 . . . 1 . . 1 . . . . . 1 . 1 1 . . 2 Average Overweight (x) . | . . 3 2 . . . . . . . . . . . . . . . . . . . . . Largest Inventory Capacity 20 | 8 20 20 20 20 10 10 10 10 10 10 10 10 10 10 10 10 10 10 15 15 15 15 15 15 Average Capacity 13 | 6 17 20 20 10 10 10 10 10 10 10 10 10 10 10 10 10 10 10 13 15 15 15 15 11 Most Carried 20 | 1 17 20 20 20 10 10 10 10 10 10 10 10 10 10 10 10 10 10 13 15 15 14 15 15 Average Carried 12 | . 9 19 19 10 9 9 9 10 9 9 10 9 9 9 10 9 10 10 10 14 13 13 14 8 Final Capacity 20 | 8 20 20 20 10 10 10 10 10 10 10 10 10 10 10 10 10 10 10 15 15 15 15 15 5 Final Carried 20 | 1 17 20 20 10 9 9 10 10 10 10 10 10 10 10 10 10 10 10 13 15 15 13 14 3 Scrap Suit Usage (%) 1 | . . . . . . . . . . . . . . . . . . . . . . . . 10 Class Distribution -------------------- 29% | Mutant 19% | Derelict-Scout 15% | Hacker-Mutant 13% | Hacker-Skirmisher 7% | Hacker-Scout 6% | Scavenger-Mutant 4% | Wizard-Mutant Dominant Class ---------------- Mutant | -10/Materials Mutant | -10/Subcaves Mutant | -8/Scraptown Derelict-Scout | -6/Factory Derelict-Scout | -6/Lower Caves Derelict-Scout | -6/Lower Caves Derelict-Mutant | -6/Data Miner Derelict-Scout | -5/Proximity Caves Hacker-Scout | -5/Factory Hacker-Scout | -5/Upper Caves Hacker-Scout | -5/Upper Caves Hacker-Mutant | -5/Zhirov Hacker-Mutant | -4/Proximity Caves Hacker-Skirmisher | -4/Factory Hacker-Skirmisher | -4/Extension Hacker-Mutant | -4/Cetus Hacker-Mutant | -4/Archives Hacker-Skirmisher | -4/Hub_04(d) Hacker-Skirmisher | -3/Research Hacker-Mutant | -3/Armory Hacker-Mutant | -3/Lab Wizard-Mutant | -2/Research Wizard-Mutant | -2/Testing Scavenger-Mutant | -2/Protoforge Resources | -11 -10 -10 -8 -6 -6 -6 -6 -5 -5 -5 -5 -5 -4 -4 -4 -4 -4 -4 -3 -3 -3 -2 -2 -2 ----------- Run | Yrd Mat Sub Scr Fac Low Low Dat Pro Fac Upp Upp Zhi Pro Fac Ext Cet Arc Hub Res Arm Lab Res Tes Frg Matter Collected 4072 | 260 59 259 216 54 178 134 . 73 50 76 81 105 263 40 107 170 . . 376 110 70 150 296 945 Remotely . | . . . . . . . . . . . . . . . . . . . . . . . . . Salvage Created 7559 | . 268 . 112 30 171 102 27 410 . . . 105 159 110 128 150 . 380 449 908 70 47 1160 2773 Parts 311 | . 29 . 7 1 8 2 3 5 . . . 2 3 3 10 9 . 17 15 47 4 2 44 100 Haulers Intercepted 3 | . . . . . . 1 . . . . . . . 1 . . . . 1 . . . . . Recyclers Shooed 1 | . . . . 1 . . . . . . . . . . . . . . . . . . . . Parts Field Recycled . | . . . . . . . . . . . . . . . . . . . . . . . . . Retrieved Matter . | . . . . . . . . . . . . . . . . . . . . . . . . . Parts Self-Destructed 64 | . . 16 . . 7 17 . 4 . . . 2 18 . . . . . . . . . . . Prevented 28 | . . . . . . 8 . 8 . . 3 . 9 . . . . . . . . . . . Parts Restored . | . . . . . . . . . . . . . . . . . . . . . . . . . Kills | -11 -10 -10 -8 -6 -6 -6 -6 -5 -5 -5 -5 -5 -4 -4 -4 -4 -4 -4 -3 -3 -3 -2 -2 -2 ------- Run | Yrd Mat Sub Scr Fac Low Low Dat Pro Fac Upp Upp Zhi Pro Fac Ext Cet Arc Hub Res Arm Lab Res Tes Frg Combat Hostiles Destroyed 102 | . 11 . . . 7 . . . . . . . 1 . 2 1 . 4 5 13 1 . 16 41 Guns 16 | . 11 . . . . . . . . . . . . . . . . . . . . . . 5 Cannons 52 | . . . . . . . . . . . . . 1 . 1 1 . . 3 12 . . 11 23 AOE 13 | . . . . . 7 . . . . . . . . . . . . 1 2 . . . . 3 Classes Destroyed 21 | . 5 . 2 . 2 1 . . . . . . 1 . 2 . . 1 3 1 . . . 3 Worker 1 | . . . . . . . . . . . . . . . . . . 1 . . . . . . Builder 6 | . . . . . . . . . . . . . . . 2 . . 2 . . . . . 2 Hauler 3 | . . . . . . 1 . . . . . . . 1 . . . . 1 . . . . . Recycler 1 | . . . . . . . . . . . . . . . . . . . 1 . . . . . Minesweeper 1 | . . . . . 1 . . . . . . . . . . . . . . . . . . . Mechanic 1 | . 1 . . . . . . . . . . . . . . . . . . . . . . . Operator 4 | . 1 . . 1 . . . . . . . . . . . . . . . . . . 1 1 Drone 2 | . . . . . . . . . . . . . . . . . . . . . . . . 2 Watcher 7 | . 1 . . . . . . . . . . . . . . . . . 1 . . 1 1 3 Swarmer 21 | . 9 . . . 6 . . . . . . . . . 1 . . . 1 . . . . 4 Grunt 23 | . 2 . . . 1 . . . . . . . . . . . . 4 . 6 . . 1 9 Sentry 4 | . . . . . . . . . . . . . . . 1 . . . 1 . . . . 2 Demolisher 1 | . . . . . . . . . . . . . . . . . . . . 1 . . . . Hunter 9 | . . . . . . . . . . . . . . . . . . . 1 1 . . . 7 Programmer 17 | . . . . . . . . . . . . . 1 . . . . . . 5 . . 8 3 Behemoth 2 | . . . . . . . . . . . . . . . . . . . 2 . . . . . Cetus Guard 1 | . . . . . . . . . . . . . . . . 1 . . . . . . . . Hotshot 5 | . . . . . . . . . . . . . . . . . . . . . . . . 5 Decapitator 1 | . . . . . . . . . . . . . . . . . . . . . . . . 1 Tracker 9 | . . . . . . . . . . . . . . . . . . . . . . . 5 4 Combat Programmer 4 | . . . . . . . . . . . . . . . . . . . . . . . 2 2 Executioner 2 | . . . . . . . . . . . . . . . . . . . . . . . . 2 Subdweller 2 | . . . 2 . . . . . . . . . . . . . . . . . . . . . Scientist 1 | . . . 1 . . . . . . . . . . . . . . . . . . . . . Samaritan 1 | . . . . . 1 . . . . . . . . . . . . . . . . . . . Best Kill Streak 10 | . 6 . . 1 4 1 1 . . . . . 1 1 1 1 . 7 3 4 1 1 3 10 Combat Bots Only 6 | . 6 . . . 4 . . . . . . . 1 . 1 1 . 4 1 4 1 . 3 5 Max Kills in Single Turn 4 | . 2 . 1 1 3 1 1 . . . . . 1 1 1 1 . 4 1 1 1 1 1 2 Gunslinging 1 | . 1 . . . . . . . . . . . . . . . . . . . . . . . Exploded 3 | . . . . . 3 . . . . . . . . . . . . 1 1 . . . . 1 Melee . | . . . . . . . . . . . . . . . . . . . . . . . . . Uniques/NPCs Destroyed 3 | . . . . . . . 1 . . . . . . . . 1 . . . . 1 . . . Data Miner (-6/Data Miner) A7 (-4/Cetus) A5 (-3/Lab) Combat | -11 -10 -10 -8 -6 -6 -6 -6 -5 -5 -5 -5 -5 -4 -4 -4 -4 -4 -4 -3 -3 -3 -2 -2 -2 -------- Run | Yrd Mat Sub Scr Fac Low Low Dat Pro Fac Upp Upp Zhi Pro Fac Ext Cet Arc Hub Res Arm Lab Res Tes Frg Hostile Shots Fired 1128 | . 47 2 . 38 16 . 9 9 49 . 4 . 2 3 20 14 3 9 29 59 65 . 188 562 Missed 276 | . 14 1 . 17 5 . 4 2 22 . 2 . . 1 7 4 1 . 7 19 10 . 38 122 Hits 852 | . 33 1 . 21 11 . 5 7 27 . 2 . 2 2 13 10 2 9 22 40 55 . 150 440 Melee 2 | . . . . . . . . . . . . . . . . . . . . . . . . 2 Projectile 850 | . 33 1 . 21 11 . 5 7 27 . 2 . 2 2 13 10 2 9 22 40 55 . 150 438 AOE 4 | . . . . . . . . . . . . . . . . . . . . 2 . . . 2 Critical Strikes 40 | . . . . . . . . 1 1 . . . . . 2 3 . 1 2 2 2 . 6 20 Actively Blocked 23 | . . . . . . . . 1 . . . . . . . . . . . . 2 . . 20 Part Disruptions 4 | . . . . . . . . . . . . . . . . . . 1 . . 2 . . 1 Damage Taken 18937 | . 276 20 . 384 260 . 211 109 573 . 23 . 46 29 264 264 42 350 391 751 1041 . 3508 10395 Core 1900 | . 37 . . 47 99 . 124 16 79 . . . . . . . . 66 33 66 112 . 146 1075 Absorbed by Shields 1207 | . . . . . . . . . . . . . . . . 120 15 124 141 275 367 . 18 147 Redirected to Shielding 319 | . . . . . . . 23 20 69 . . . . . . . . . . . . . . 207 Ignored by Resistances 110 | . . . . . . . 39 23 . . . . . 4 14 30 . . . . . . . . Regen/Repaired (Parts) 2255 | . . . . . . . . . . . . . . . 47 . . . 38 26 366 172 949 657 Core Remaining (%) 88 | 100 . . 85 . . . . 66 . . . . 92 . . . . 94 . . 91 . . . Volleys Fired 674 | . 30 79 . 6 9 . . . 4 . 3 7 8 8 28 37 10 3 50 64 62 6 56 204 Largest 2 | . 2 2 . 1 1 . . . 1 . 1 1 1 1 1 1 1 1 1 1 1 1 1 1 Hottest 200 | . 90 75 . 60 36 . . . 60 . 55 20 55 40 40 40 40 40 55 120 120 100 100 200 Shots Fired 702 | . 58 86 . 6 9 . . . 4 . 3 7 9 8 28 37 10 3 50 64 62 6 56 196 Gun 209 | . 58 82 . 6 . . . . 3 . . . . . . . . . . . . . . 60 Cannon 467 | . . 4 . . . . . . . . 2 . 7 8 28 37 10 3 44 64 62 6 56 136 Launcher 16 | . . . . . 9 . . . 1 . . . . . . . . . 6 . . . . . Special 10 | . . . . . . . . . . . 1 7 2 . . . . . . . . . . . Kinetic 149 | . . 81 . . . . . . . . 2 . 6 . . . . . . . . . . 60 Thermal 504 | . 58 5 . . . . . . . . . 7 3 8 28 37 10 3 44 49 62 4 50 136 Explosive 16 | . . . . . 9 . . . 1 . . . . . . . . . 6 . . . . . Electromagnetic 32 | . . . . 6 . . . . 3 . . . . . . . . . . 15 . 2 6 . Robot Hit Streak 67 | . 6 6 . 6 2 . . . 1 . 2 3 4 6 11 5 5 . 7 6 8 4 26 67 Robot Miss Streak 9 | . 5 1 . 3 2 . . . 1 . 1 1 2 . 2 4 . . 3 6 4 . 1 9 Penetration Max 1 | . . . . . . . . . . . . . . . . . . . . . . . . 1 Secondary Targets 1 | . 1 . . . . . . . . . . . . . . . . . . . . . . . Max Gunslinging Chain 1 | . 1 . . . . . . . . . . . . . . . . . . . . . . . Capacitor 125 | . . . . . . . . . . . . . . . . . . . 44 64 2 6 9 . Shots Hit Robots 433 | . 30 11 7 6 8 6 1 13 3 . 2 5 5 6 19 23 1 . 26 36 35 1 48 141 Core Hits 198 | . 19 1 2 4 8 2 1 8 . . . 4 3 2 4 7 . 7 11 17 7 1 18 72 Critical Kills 23 | . . . . . . . . . . . . . . . 2 . . . 1 1 1 . 6 12 Critical Parts Destroyed . | . . . . . . . . . . . . . . . . . . . . . . . . . Critical Strikes 28 | . . . 1 . 1 . . 1 . . . . 2 . 2 . . . 1 1 1 . 6 12 Meltdown 22 | . . . . . . . . . . . . . . . 2 . . . 1 1 1 . 6 11 Destroy 1 | . . . . . . . . . . . . . . . . . . . . . . . . 1 Blast 2 | . . . . . . . . . . . . . 2 . . . . . . . . . . . Smash 1 | . . . 1 . . . . . . . . . . . . . . . . . . . . . Impale 2 | . . . . . 1 . . 1 . . . . . . . . . . . . . . . . Melee Attacks 49 | . . . 7 5 5 8 5 13 6 . . . . . . . . . . . . . . . Impact 12 | . . . 7 5 . . . . . . . . . . . . . . . . . . . . Slashing . | . . . . . . . . . . . . . . . . . . . . . . . . . Piercing 37 | . . . . . 5 8 5 13 6 . . . . . . . . . . . . . . . Sneak Attacks 11 | . . . 7 1 2 . 1 . . . . . . . . . . . . . . . . . Combat Hostiles . | . . . . . . . . . . . . . . . . . . . . . . . . . Follow-up Attacks . | . . . . . . . . . . . . . . . . . . . . . . . . . Damage Inflicted 24186 | . 380 131 572 199 927 195 66 713 57 . 46 85 195 216 854 1161 44 893 2377 1969 1094 47 2993 8972 Guns 2165 | . 380 110 . 85 . . . . 30 . . . . . . . . . . . . . . 1560 Cannons 15842 | . . 21 . . . . . . . . 46 . 160 216 852 1161 44 . 1147 1969 1094 47 2965 6120 Explosions 4035 | . . . . 49 749 . . . . . . . . . . . . 822 1204 . . . . 1211 Melee 1765 | . . . 572 59 178 195 48 713 . . . . . . . . . . . . . . . . Ramming 259 | . . . . 6 . . 18 . 27 . . . . . 2 . . 71 26 . . . 28 81 Kinetic 1859 | . . 93 . . . . . . . . 46 . 160 . . . . . . . . . . 1560 Thermal 16779 | . 380 38 . 49 . . . . . . . 85 35 216 852 1161 44 . 1147 1335 1094 47 2965 7331 Explosive 1953 | . . . . . 749 . . . . . . . . . . . . . 1204 . . . . . Electromagnetic 1571 | . . . . 85 . . . . 30 . . . . . . . . 822 . 634 . . . . Impact 631 | . . . 572 59 . . . . . . . . . . . . . . . . . . . . Slashing . | . . . . . . . . . . . . . . . . . . . . . . . . . Piercing 1134 | . . . . . 178 195 48 713 . . . . . . . . . . . . . . . . Highest Corruption 20 | . 4 4 . . . . . . 1 1 1 1 1 . . . . 5 . 1 20 . 9 19 Average Corruption 5 | . 2 4 . . . . . . 1 1 1 1 1 . . . . 2 . 1 10 . 3 13 Corruption Purged 3 | . . . . . . . . . . . . . . . . . . . . . . . . 3 Corruption Blocked . | . . . . . . . . . . . . . . . . . . . . . . . . . Effects 193 | . 22 38 . . . . . . . 1 2 3 10 . . . . . . . 18 . 14 85 Message Errors 42 | . 4 12 . . . . . . . . 1 1 1 . . . . . . . 2 . 4 17 Matter Fused 43 | . 5 8 . . . . . . . . . 1 6 . . . . . . . 3 . 3 17 Heat Flow Errors 23 | . 3 4 . . . . . . . . . . 2 . . . . . . . 4 . 1 9 Energy Discharges 20 | . 3 4 . . . . . . . 1 1 1 . . . . . . . . 4 . 1 5 Parts Rejected 3 | . . 1 . . . . . . . . . . . . . . . . . . . . . 2 Parts Fused 3 | . 1 . . . . . . . . . . . . . . . . . . . . . . 2 Data Loss (minor) 24 | . 3 2 . . . . . . . . . . . . . . . . . . 2 . 2 15 Data Loss (major) 8 | . 2 2 . . . . . . . . . . . . . . . . . . 1 . 1 2 Misfires 8 | . 1 3 . . . . . . . . . . 1 . . . . . . . 1 . 1 1 Alerts 1 | . . 1 . . . . . . . . . . . . . . . . . . . . . . Misdirections 7 | . . . . . . . . . . . . . . . . . . . . . . . . 7 Weapon Failures 11 | . . 1 . . . . . . . . . . . . . . . . . . 1 . 1 8 Overload Shots 1 | . . . . . . . . . . . . . . . . . . . . . . . . 1 Overflow Damage 1683 | . . . 116 . 121 . . 215 . . . . 47 . 6 45 . 95 124 119 16 . 237 542 Projectiles 1071 | . . . . . . . . . . . . . 47 . 6 45 . . 96 119 16 . 234 508 Explosions 204 | . . . . . 67 . . . . . . . . . . . . 95 28 . . . . 14 Melee 408 | . . . 116 . 54 . . 215 . . . . . . . . . . . . . . 3 20 Knockbacks 8 | . . . 5 . . . 1 . . . . . 1 . . . . . . . . . . 1 Impact 5 | . . . 3 . . . 1 . . . . . . . . . . . . . . . . 1 Kinetic 1 | . . . . . . . . . . . . . 1 . . . . . . . . . . . Secondary 2 | . . . 2 . . . . . . . . . . . . . . . . . . . . . Self-Inflicted Damage 207 | . . . . 3 87 . 9 . 13 . . . . . . . . 95 . . . . . . Shots 3 | . . . . . 2 . . . . . . . . . . . . 1 . . . . . . Rammed 5 | . . . . 2 . . 2 . 1 . . . . . . . . . . . . . . . Targets Rammed 14 | . . . . 2 . . 2 . 1 . . . . . 1 . . 2 2 . . . 1 3 Kicked 9 | . . . . . . . . . . . . . . . 1 . . 2 2 . . . 1 3 Crushed . | . . . . . . . . . . . . . . . . . . . . . . . . . Highest Temperature 689 | . 371 227 . 40 16 . . . 50 . 44 . 283 75 99 100 . . 299 689 10 . 157 120 Average Temperature 88 | . 86 104 . 18 6 . . . 19 . 26 . 94 35 33 50 . . 87 196 10 . 38 73 Received Heat Transfer 1870 | . 48 6 . 9 27 . . 39 153 . . . . . 64 . 6 . 63 96 . . 537 822 Effects 7 | . . . . . . . . . . . . . 1 . . . . . . 6 . . . . Energy Bleed 1 | . . . . . . . . . . . . . 1 . . . . . . . . . . . Interference 2 | . . . . . . . . . . . . . . . . . . . . 2 . . . . Damage (minor) 1 | . . . . . . . . . . . . . . . . . . . . 1 . . . . Damage (major) 3 | . . . . . . . . . . . . . . . . . . . . 3 . . . . Siege Activations . | . . . . . . . . . . . . . . . . . . . . . . . . . Martial Activations . | . . . . . . . . . . . . . . . . . . . . . . . . . Shielding Activations . | . . . . . . . . . . . . . . . . . . . . . . . . . Robots Disrupted . | . . . . . . . . . . . . . . . . . . . . . . . . . Combat Hostiles . | . . . . . . . . . . . . . . . . . . . . . . . . . Robots Corrupted 5 | . . . 1 . . . . . . . . . . . . . . 3 . . . . . 1 Combat Hostiles 3 | . . . . . . . . . . . . . . . . . . 3 . . . . . . Parts Fried 15 | . . . 2 . . . . . . . . . . . . 1 . 4 . 8 . . . . Impact Corruptions 7 | . . . 4 . . . . . . . . . . . . . . . . . . . 1 2 Robots Melted 22 | . . . . . . . . . . . . . . . 2 . . . 1 1 1 . 6 11 Combat Hostiles 18 | . . . . . . . . . . . . . . . 1 . . . . 1 1 . 5 10 Parts Melted 36 | . . . . . . . . . . . . . . 1 5 . . . 1 3 3 . 16 7 Heat Transferred 14063 | . 1028 111 . 50 . . . . . . . 185 74 222 851 925 37 . 897 888 1164 37 1776 5818 Parts Sabotaged . | . . . . . . . . . . . . . . . . . . . . . . . . . Parts Stolen . | . . . . . . . . . . . . . . . . . . . . . . . . . Parts Stripped . | . . . . . . . . . . . . . . . . . . . . . . . . . Power Chain Reactions 2 | . . . . 1 . . . . . . . . . . . . . 1 . . . . . . Alert | -11 -10 -10 -8 -6 -6 -6 -6 -5 -5 -5 -5 -5 -4 -4 -4 -4 -4 -4 -3 -3 -3 -2 -2 -2 ------- Run | Yrd Mat Sub Scr Fac Low Low Dat Pro Fac Upp Upp Zhi Pro Fac Ext Cet Arc Hub Res Arm Lab Res Tes Frg Maximum Alert Level 3 | . . . . . . . . . 1 . . . . 1 1 . . 1 1 1 . . . 3 Low Security (%) 76 | 100 100 . . 100 . . . . 77 . . . . 90 88 100 100 83 59 67 . 100 100 18 Level 1 8 | . . . . . . . . . 22 . . . . 9 11 . . 16 40 32 . . . 3 Level 2 4 | . . . . . . . . . . . . . . . . . . . . . . . . 22 Level 3 10 | . . . . . . . . . . . . . . . . . . . . . . . . 55 Level 4 . | . . . . . . . . . . . . . . . . . . . . . . . . . Level 5 . | . . . . . . . . . . . . . . . . . . . . . . . . . High Security . | . . . . . . . . . . . . . . . . . . . . . . . . . Max Security . | . . . . . . . . . . . . . . . . . . . . . . . . . Peak Influence 968 | . 130 . . 53 . . . . 281 . . . . 311 313 92 31 394 252 384 . 15 154 968 Initial 206 | . . . . . . . . . . . . . . 32 . 33 16 . 206 124 . . 2 76 Average 164 | . 22 . . 6 . . . . 107 . . . . 72 87 31 16 66 134 190 . 3 41 591 Influence Increases 7682 | . 286 63 . 266 180 97 20 213 611 . 56 14 470 324 930 311 21 394 434 546 . 43 559 1844 Destroy 0b10 Robot/C 3400 | . 220 40 . 100 140 80 20 120 100 . 40 . 280 100 460 160 . 80 100 260 . . 320 780 Destroy 0b10 Robot/NC 190 | . 15 . . 5 5 5 . . 5 . . 10 5 10 35 10 . 15 15 . . 5 10 40 Destroy Leader 592 | . 42 10 . 20 20 . . . 22 . . . 30 22 44 . . 10 32 40 . 2 112 186 Allied During Kill 723 | . . 13 . 17 . 12 . 33 9 . 16 4 140 72 318 89 . . . . . . . . Trap Triggered on 0b10 10 | . . . . . . . . . 10 . . . . . . . . . . . . . . . Successful Hack 214 | . 9 . . 16 . . . . 24 . . . . . 12 . . . 57 57 . . 39 . Disable Machine 570 | . . . . 60 . . . . . . . . . 60 . . 15 105 . 60 . 15 75 180 Anti-Garrison Action 150 | . . . . . . . . . . . . . . . . . . . 150 . . . . . Destroy Structure 888 | . . . . 3 . . . . 36 . . . . 60 46 52 6 184 80 24 . 6 3 388 Partial Spotted 60 | . . . . 15 . . . . 15 . . . . . 15 . . . . . . 15 . . Lose Combat Pursuer 885 | . . . . 30 15 . . 60 390 . . . 15 . . . . . . 105 . . . 270 Influence Decreases 6738 | . 286 63 . 241 69 233 20 213 400 211 56 14 418 376 870 331 61 . 590 408 376 38 428 1036 Entered New Map 928 | . . . . . 10 27 . . . 79 . . . 20 . 27 24 . 188 114 376 . 3 60 Time Decay 3919 | . 286 43 . 85 49 206 20 173 150 132 56 14 398 206 455 164 20 . 238 254 . 38 346 586 Search Patrol Dispatched 100 | . . . . . . . . . 100 . . . . . . . . . . . . . . . Lost Part 571 | . . . . 22 10 . . . 60 . . . . . . . . . . 10 . . 79 390 Lost Ally 698 | . . 20 . 134 . . . 40 90 . . . 20 . 193 140 17 . 14 30 . . . . Purge Threat 522 | . . . . . . . . . . . . . . 150 222 . . . 150 . . . . . Squads Dispatched 54 | . 1 . . 4 . . . . 9 . . . . 3 3 . . . 9 5 . . 6 14 Investigation 21 | . . . . 2 . . . . 3 . . . . 1 2 . . . 7 1 . . . 5 Extermination 11 | . . . . 1 . . . . 1 . . . . 1 . . . . . 2 . . 4 2 Reinforcement 13 | . 1 . . 1 . . . . 2 . . . . 1 1 . . . 2 2 . . . 3 Assault 1 | . . . . . . . . . . . . . . . . . . . . . . . . 1 Garrison 3 | . . . . . . . . . 3 . . . . . . . . . . . . . . . Intercept 5 | . . . . . . . . . . . . . . . . . . . . . . . 2 3 Searches Triggered 1 | . . . . . . . . . 1 . . . . . . . . . . . . . . . Construction Impeded 1 | . . . . . . . . . 1 . . . . . . . . . . . . . . . Haulers Reinforced . | . . . . . . . . . . . . . . . . . . . . . . . . . Active Scanning Responses . | . . . . . . . . . . . . . . . . . . . . . . . . . Cargo Convoy Interrupts . | . . . . . . . . . . . . . . . . . . . . . . . . . Stealth | -11 -10 -10 -8 -6 -6 -6 -6 -5 -5 -5 -5 -5 -4 -4 -4 -4 -4 -4 -3 -3 -3 -2 -2 -2 --------- Run | Yrd Mat Sub Scr Fac Low Low Dat Pro Fac Upp Upp Zhi Pro Fac Ext Cet Arc Hub Res Arm Lab Res Tes Frg Distress Signals 25 | . 1 . . 3 . . . . 3 . . . . . 1 2 . . 8 3 . . . 4 Communications Jammed 125 | . . . . . . . . . . . . . . . 3 . . 7 23 . . . . 92 Distress Signals 125 | . . . . . . . . . . . . . . . 3 . . 7 23 . . . . 92 Times Spotted 314 | . 25 11 . 17 9 . 4 5 26 . 2 . 8 3 23 9 2 4 18 21 1 1 20 105 Peak Tracking Total 15 | . 5 2 . 6 4 . 4 3 9 . 1 . 4 3 3 5 2 5 5 7 1 1 7 15 Tactical Retreats 24 | . . . . 2 1 . . 3 9 . . . 1 . . . . . . 3 . . . 5 Traps | -11 -10 -10 -8 -6 -6 -6 -6 -5 -5 -5 -5 -5 -4 -4 -4 -4 -4 -4 -3 -3 -3 -2 -2 -2 ------- Run | Yrd Mat Sub Scr Fac Low Low Dat Pro Fac Upp Upp Zhi Pro Fac Ext Cet Arc Hub Res Arm Lab Res Tes Frg Traps Triggered 11 | . 2 . . 1 . . . . . . . . . . 1 . . . 1 . . 2 2 2 Indirectly . | . . . . . . . . . . . . . . . . . . . . . . . . . Trap Hack Attempts . | . . . . . . . . . . . . . . . . . . . . . . . . . Triggered . | . . . . . . . . . . . . . . . . . . . . . . . . . Disarmed 8 | . . . . . . . . . . . . . . . 8 . . . . . . . . . Reprogrammed 5 | . . . . . . . . . 5 . . . . . . . . . . . . . . . Reused 1 | . . . . . . . . . 1 . . . . . . . . . . . . . . . Traps Extracted . | . . . . . . . . . . . . . . . . . . . . . . . . . Installed . | . . . . . . . . . . . . . . . . . . . . . . . . . Triggered 1 | . . . . . . . . . 1 . . . . . . . . . . . . . . . Machines | -11 -10 -10 -8 -6 -6 -6 -6 -5 -5 -5 -5 -5 -4 -4 -4 -4 -4 -4 -3 -3 -3 -2 -2 -2 ---------- Run | Yrd Mat Sub Scr Fac Low Low Dat Pro Fac Upp Upp Zhi Pro Fac Ext Cet Arc Hub Res Arm Lab Res Tes Frg Machines Disabled 50 | . . . . 4 . . 1 . . 2 1 . . 4 . . 1 7 1 4 4 1 6 14 Max in Single Turn 7 | . . . . 2 . . 1 . . 1 1 . . . . . 1 7 1 1 1 1 1 3 Garrison Access 4 | . . . . 1 . . . . . . . . . . . . . 1 1 . . . 1 . Network Hub 1 | . . . . . . . . . . . . . . . . . . 1 . . . . . . Machines Repaired . | . . . . . . . . . . . . . . . . . . . . . . . . . Machines Dismantled 3 | . . . . . . . . . . 2 1 . . . . . . . . . . . . . Machines Sabotaged . | . . . . . . . . . . . . . . . . . . . . . . . . . Overloaded Fab Kills . | . . . . . . . . . . . . . . . . . . . . . . . . . Hacking | -11 -10 -10 -8 -6 -6 -6 -6 -5 -5 -5 -5 -5 -4 -4 -4 -4 -4 -4 -3 -3 -3 -2 -2 -2 --------- Run | Yrd Mat Sub Scr Fac Low Low Dat Pro Fac Upp Upp Zhi Pro Fac Ext Cet Arc Hub Res Arm Lab Res Tes Frg Machines Accessed 74 | . 4 . 2 7 . . 4 . 5 . . 4 . 2 14 . . 2 9 2 1 3 7 8 Terminals 34 | . 4 . . 3 . . . . 3 . . . . . 11 . . 1 3 1 . 2 4 2 Fabricators 6 | . . . . 2 . . . . . . . . . . . . . . 1 . . . . 3 Repair Stations 5 | . . . . . . . . . . . . . . . 1 . . . 1 1 . . 1 1 Recycling Units 10 | . . . . 1 . . . . 1 . . . . 1 2 . . . 3 . . . . 2 Scanalyzers 4 | . . . . . . . . . . . . . . 1 . . . . 1 . . 1 1 . Garrison Access 4 | . . . . 1 . . . . 1 . . . . . . . . 1 . . . . 1 . Total Hacks 254 | . 7 . 4 23 . . 31 . 19 . . 17 . 8 43 . . 3 28 4 4 14 27 22 Successful 148 | . 4 . 4 10 . . 31 . 10 . . 17 . 4 19 . . 2 15 3 4 5 14 6 Failed 105 | . 3 . . 13 . . . . 9 . . . . 4 24 . . 1 13 1 . 8 13 16 Catastrophic 30 | . . . . 4 . . . . 3 . . . . . 4 . . . 4 . . 3 5 7 Database Lockouts 1 | . . . . . . . . . . . . . . . . . . . . . . 1 . . Manual 72 | . 6 . . 12 . . . . 13 . . . . 1 17 1 . 1 9 . . 7 1 4 Terminals 125 | . 7 . . 15 . . . . 14 . . . . 4 37 . . 1 13 1 . 11 15 7 Fabricators 18 | . . . . 3 . . . . . . . . . . . . . . 3 . . . . 12 Repair Stations 14 | . . . . . . . . . . . . . . . 4 . . . 2 3 . . 4 1 Recycling Units 14 | . . . . 1 . . . . 2 . . . . 1 2 . . . 6 . . . . 2 Scanalyzers 17 | . . . . . . . . . . . . . . 3 . . . . 4 . . 3 7 . Garrison Access 10 | . . . . 4 . . . . 3 . . . . . . . . 2 . . . . 1 . Terminal Hacks 104 | . 1 . 4 5 . . 31 . 7 . . 17 . 2 14 . . 1 5 1 4 3 7 2 Record 23 | . . . 4 . . . 11 . . . . 5 . . . . . . . . 3 . . . Part Schematic 16 | . . . . . . . 12 . . . . 4 . . . . . . . . . . . . Robot Schematic 5 | . . . . . . . 5 . . . . . . . . . . . . . . . . . Robot Analysis 4 | . . . . . . . . . . . . 4 . . . . . . . . . . . . Prototype ID Bank 7 | . . . . . . . 3 . . . . 4 . . . . . . . . . . . . Open Door 4 | . . . . . . . . . . . . . . . 4 . . . . . . . . . Level Access Points 1 | . . . . . . . . . . . . . . . . . . . 1 . . . . . Branch Access Points 5 | . . . . 1 . . . . 2 . . . . 1 . . . . . . . 1 . . Emergency Access Points 2 | . . . . 1 . . . . . . . . . . . . . . . . . . 1 . Machine Index 1 | . . . . . . . . . . . . . . . . . . . 1 . . . . . Fabricator Index 1 | . . . . 1 . . . . . . . . . . . . . . . . . . . . Repair Station Index 1 | . . . . . . . . . . . . . . . . . . . . . . . 1 . Recycling Unit Index 3 | . . . . . . . . . . . . . . 1 . . . . 1 . . 1 . . Unreport Threat 2 | . . . . . . . . . . . . . . . 1 . . . 1 . . . . . Locate Traps 6 | . . . . 1 . . . . 1 . . . . . 2 . . . . . . 1 . 1 Disarm Traps 2 | . . . . . . . . . . . . . . . 2 . . . . . . . . . Reprogram Traps 1 | . . . . . . . . . 1 . . . . . . . . . . . . . . . Maintenance Status 1 | . . . . . . . . . . . . . . . . . . . . . . . 1 . Patrol Status 1 | . . . . . . . . . . . . . . . . . . . . . . . 1 . Recall Investigation 3 | . . . . 1 . . . . . . . . . . 2 . . . . . . . . . Recall Reinforcements 1 | . . . . . . . . . . . . . . . 1 . . . . . . . . . Registered Components 1 | . . . . . . . . . 1 . . . . . . . . . . . . . . . Zone Layout 12 | . 1 . . . . . . . 2 . . . . . 2 . . 1 1 1 . . 3 1 Release Object 1 | . . . . . . . . . . . . . . . . . . . . . 1 . . . Fabricator Hacks 5 | . . . . 2 . . . . . . . . . . . . . . 2 . . . . 1 Load Schematic 3 | . . . . 1 . . . . . . . . . . . . . . 1 . . . . 1 Build 2 | . . . . 1 . . . . . . . . . . . . . . 1 . . . . . Repair Station Hacks 11 | . . . . . . . . . . . . . . . 2 . . . 2 2 . . 4 1 Scan Component 5 | . . . . . . . . . . . . . . . 1 . . . 1 1 . . 2 . Repair 5 | . . . . . . . . . . . . . . . 1 . . . 1 1 . . 2 . Refit 1 | . . . . . . . . . . . . . . . . . . . . . . . . 1 Recycling Unit Hacks . | . . . . . . . . . . . . . . . . . . . . . . . . . Scanalyzer 8 | . . . . . . . . . . . . . . 1 . . . . 3 . . 2 2 . Insert Component 2 | . . . . . . . . . . . . . . 1 . . . . 1 . . . . . Analyze 1 | . . . . . . . . . . . . . . . . . . . 1 . . . . . Retrieve Study 5 | . . . . . . . . . . . . . . . . . . . 1 . . 2 2 . Garrison Access Hacks 3 | . . . . 1 . . . . . . . . . . . . . 1 . . . . 1 . Seal Access 3 | . . . . 1 . . . . . . . . . . . . . 1 . . . . 1 . Unauthorized Hacks 17 | . 3 . . 2 . . . . 3 . . . . 1 3 . . . 3 . . . . 2 Terminals 4 | . 3 . . . . . . . . . . . . . 1 . . . . . . . . . Assimilate 1 | . . . . . . . . . . . . . . . 1 . . . . . . . . . Skim 3 | . 3 . . . . . . . . . . . . . . . . . . . . . . . Fabricators 1 | . . . . 1 . . . . . . . . . . . . . . . . . . . . Liberate 1 | . . . . 1 . . . . . . . . . . . . . . . . . . . . Repair Stations . | . . . . . . . . . . . . . . . . . . . . . . . . . Recycling Units 10 | . . . . 1 . . . . 1 . . . . 1 2 . . . 3 . . . . 2 Fedlink 10 | . . . . 1 . . . . 1 . . . . 1 2 . . . 3 . . . . 2 Scanalyzers . | . . . . . . . . . . . . . . . . . . . . . . . . . Garrison Access 2 | . . . . . . . . . 2 . . . . . . . . . . . . . . . Reprogram 1 | . . . . . . . . . 1 . . . . . . . . . . . . . . . Watchers 1 | . . . . . . . . . 1 . . . . . . . . . . . . . . . Data Cores Recovered 1 | . . . . . . . . . . . . . . . . . . . . . . . 1 . Used . | . . . . . . . . . . . . . . . . . . . . . . . . . Hacking Detections 30 | . 1 . . 6 . . . . 1 . . . . 2 4 . . 1 7 1 . 1 1 5 Full Trace Events 5 | . . . . 1 . . . . . . . . . . . . . . 1 . . . . 3 Feedback Events 1 | . . . . . . . . . . . . . . . . . . . . . . . . 1 Corruption 1 | . . . . . . . . . . . . . . . . . . . . . . . . 1 Feedback Blocked . | . . . . . . . . . . . . . . . . . . . . . . . . . Robot Schematics Acquired 5 | . . . . . . . 5 . . . . . . . . . . . . . . . . . Robots Built 3 | . . . . . . . . . . . . . . . . . . . 3 . . . . . Authchips . | . . . . . . . . . . . . . . . . . . . . . . . . . Time 56 | . . . . . . . . . . . . . . . . . . . 56 . . . . . Total Robot Build Rating 18 | . . . . . . . . . . . . . . . . . . . 18 . . . . . Part Schematics Acquired 44 | . . . 5 3 8 2 12 . 2 . 4 7 . . . . . . 1 . . . . . Parts Built 1 | . . . . 1 . . . . . . . . . . . . . . . . . . . . Authchips . | . . . . . . . . . . . . . . . . . . . . . . . . . Time 84 | . . . . 84 . . . . . . . . . . . . . . . . . . . . Total Part Build Rating 4 | . . . . 4 . . . . . . . . . . . . . . . . . . . . Part Studies Acquired 5 | . . . . . . . . . . . . . . . . . . . 1 . . 2 2 . Parts Repaired 5 | . . . . . . . . . . . . . . . 1 . . . 1 1 . . 2 . Time 348 | . . . . . . . . . . . . . . . 49 . . . 56 36 . . 207 . Parts Recycled . | . . . . . . . . . . . . . . . . . . . . . . . . . Recycled Matter . | . . . . . . . . . . . . . . . . . . . . . . . . . Retrieved Matter . | . . . . . . . . . . . . . . . . . . . . . . . . . Retrieved Components . | . . . . . . . . . . . . . . . . . . . . . . . . . Parts Scanalyzed 1 | . . . . . . . . . . . . . . . . . . . 1 . . . . . Part Schematics Acquired 1 | . . . . . . . . . . . . . . . . . . . 1 . . . . . Parts Damaged . | . . . . . . . . . . . . . . . . . . . . . . . . . Bothacking | -11 -10 -10 -8 -6 -6 -6 -6 -5 -5 -5 -5 -5 -4 -4 -4 -4 -4 -4 -3 -3 -3 -2 -2 -2 ------------ Run | Yrd Mat Sub Scr Fac Low Low Dat Pro Fac Upp Upp Zhi Pro Fac Ext Cet Arc Hub Res Arm Lab Res Tes Frg Used RIF Installer . | . . . . . . . . . . . . . . . . . . . . . . . . . Robots Hacked 1 | . . . . . . . . . . . 1 . . . . . . . . . . . . . Non-combat . | . . . . . . . . . . . . . . . . . . . . . . . . . Combat . | . . . . . . . . . . . . . . . . . . . . . . . . . Robot Hacks Applied . | . . . . . . . . . . . . . . . . . . . . . . . . . Manual 1 | . . . . . . . . . . . 1 . . . . . . . . . . . . . Relay Couplers Released 1 | . . . . . . . . . . . . . . . . . . . 1 . . . . . Machine Destruction 1 | . . . . . . . . . . . . . . . . . . . 1 . . . . . Fabnet Peak Effective % . | . . . . . . . . . . . . . . . . . . . . . . . . . Robots Rewired 14 | . . . . . . . . . . . . . . . 12 . . . . 2 . . . . Allies Hacked 1 | . . . . . . . . . . . . . . . . . . . . 1 . . . . Hacks Repelled 1 | . . . . . . . . . . . . . . . . . . . . 1 . . . . Allies | -11 -10 -10 -8 -6 -6 -6 -6 -5 -5 -5 -5 -5 -4 -4 -4 -4 -4 -4 -3 -3 -3 -2 -2 -2 -------- Run | Yrd Mat Sub Scr Fac Low Low Dat Pro Fac Upp Upp Zhi Pro Fac Ext Cet Arc Hub Res Arm Lab Res Tes Frg Total Allies 66 | . . 10 . 3 . 6 . 6 4 4 2 . 3 . 18 5 . . 3 2 . . . . Largest Group 10 | . . 8 8 6 . 4 . 4 3 4 5 5 5 5 10 8 1 . 3 2 . . . . Highest-Rated Group 706 | . . 152 152 110 . 324 . 324 243 324 409 409 409 389 553 706 89 . 90 120 . . . . Highest-Rated Ally 159 | . . 19 19 30 . 81 . 81 81 81 85 85 85 81 159 159 89 . 30 64 . . . . Total Orders . | . . . . . . . . . . . . . . . . . . . . . . . . . Ally Attacks 435 | . . 28 . 21 . 9 . 21 40 . 9 . 67 13 133 81 6 . 5 2 . . . . Total Damage 13501 | . . 384 . 431 . 814 . 620 1209 . 251 . 1695 323 4646 2588 279 . 158 103 . . . . Kills 82 | . . 2 . 5 . 5 . 6 6 . 2 . 14 6 27 9 . . . . . . . . Allies Corrupted 4 | . . . 1 2 . . . . . . . . . . . . . . . 1 . . . . Allies Melted 2 | . . . . . . . . . . . . . . . 1 . . . . . . . . 1 Intel | -11 -10 -10 -8 -6 -6 -6 -6 -5 -5 -5 -5 -5 -4 -4 -4 -4 -4 -4 -3 -3 -3 -2 -2 -2 ------- Run | Yrd Mat Sub Scr Fac Low Low Dat Pro Fac Upp Upp Zhi Pro Fac Ext Cet Arc Hub Res Arm Lab Res Tes Frg Active Infowar (turns) 14700 | . . . . 468 1669 1657 85 714 339 479 690 408 942 570 1223 506 64 53 695 523 379 237 1341 1658 Optics 781 | . . . . . . . . . . . . . . . . . . . . . . . . 781 Sensors 12066 | . . . . 440 1541 1285 42 690 339 479 690 369 937 560 1223 . . 53 695 487 379 237 1207 413 Structural 636 | . . . . . 621 15 . . . . . . . . . . . . . . . . . . Machine Analysis 10716 | . . . . 468 1669 1657 85 714 339 479 690 408 942 570 1223 506 64 53 695 154 . . . . Jamming 5495 | . . . . . . . . . . . . . 2 569 1223 506 64 53 695 153 . . 1075 1155 Robot Analysis Total 4 | . . . . . . . . . . . . 4 . . . . . . . . . . . . Derelict Logs Recovered 7 | . . . . . 1 1 . 1 . 1 2 . 1 . . . . . . . . . . . Drone Launches 1 | . . . . . . . . . . . . . . 1 . . . . . . . . . . Drone Recoveries . | . . . . . . . . . . . . . . . . . . . . . . . . . Exploration | -11 -10 -10 -8 -6 -6 -6 -6 -5 -5 -5 -5 -5 -4 -4 -4 -4 -4 -4 -3 -3 -3 -2 -2 -2 ------------- Run | Yrd Mat Sub Scr Fac Low Low Dat Pro Fac Upp Upp Zhi Pro Fac Ext Cet Arc Hub Res Arm Lab Res Tes Frg Turns Passed 21294 | 71 1638 2052 2427 475 1669 1657 85 714 339 479 690 408 942 570 1223 506 64 53 695 546 587 237 1341 1826 Spaces Moved 13560 | 42 435 1186 1780 496 623 788 101 427 505 385 617 329 706 441 812 223 29 47 586 338 286 193 935 1250 Core 5 | 5 . . . . . . . . . . . . . . . . . . . . . . . . Treads 413 | 37 376 . . . . . . . . . . . . . . . . . . . . . . . Legs 5804 | . . . . . . . . . . . . 230 706 441 812 223 29 47 586 338 286 193 935 978 Wheels 3297 | . 59 1186 1780 . . . . . . . . . . . . . . . . . . . . 272 Hover 4041 | . . . . 496 623 788 101 427 505 385 617 99 . . . . . . . . . . . . Flight . | . . . . . . . . . . . . . . . . . . . . . . . . . Fastest Speed 50 | 50 145 145 105 53 58 62 62 55 53 53 53 53 90 90 90 90 90 90 90 90 97 111 101 70 Average Speed 98 | 146 198 145 129 55 68 62 62 58 53 54 53 100 99 90 90 90 90 93 90 101 123 111 103 103 Slowest Speed 240 | 160 240 145 145 66 140 66 62 62 124 58 53 190 125 90 90 97 90 170 90 170 174 114 111 190 Overloaded Moves . | . . . . . . . . . . . . . . . . . . . . . . . . . Propulsion Burnouts . | . . . . . . . . . . . . . . . . . . . . . . . . . Robots Hopped 5 | . . . . . . 5 . . . . . . . . . . . . . . . . . . Potential Cave-ins . | . . . . . . . . . . . . . . . . . . . . . . . . . Cave-ins Triggered . | . . . . . . . . . . . . . . . . . . . . . . . . . Teleports 2 | . . . . . . . . . . . . . . . . . . . . 1 . . 1 . Exploration Rate (%) 50 | 4 75 72 80 12 69 75 77 62 15 51 66 60 70 12 86 56 53 10 17 29 98 5 72 39 Regions Visited 24 Branch Regions 18 Pre-discovered Areas 7 | . . 1 . . . . 1 . 1 . . 3 1 . . . . . . . . . . . Known Exits Taken 20 | . . . . 1 1 1 1 1 1 1 1 1 1 1 1 1 1 1 1 1 1 1 1 . Unknown Exits Taken 4 | 1 1 1 1 . . . . . . . . . . . . . . . . . . . . . Scrap Searched 24 | . . 3 4 . 6 3 . 1 . 1 3 . 3 . . . . . . . . . . . Spaces Dug 28 | . . . . 3 . . . . 13 . . . . 2 . . 2 . 2 1 . 1 1 3 Terrain Destroyed 492 | . . . . 3 101 . . . 13 . 1 . 2 2 5 10 3 160 46 13 . 3 1 129 Melee 9 | . . . . 3 . . . . 6 . . . . . . . . . . . . . . . Projectile 84 | . . . . . . . . . . . 1 . 2 2 5 10 3 1 15 13 . 3 1 28 AOE 399 | . . . . . 101 . . . 7 . . . . . . . . 159 31 . . . . 101 Terrain Rammed . | . . . . . . . . . . . . . . . . . . . . . . . . . Walls Destroyed . | . . . . . . . . . . . . . . . . . . . . . . . . . Machines Disabled . | . . . . . . . . . . . . . . . . . . . . . . . . . Actions | -11 -10 -10 -8 -6 -6 -6 -6 -5 -5 -5 -5 -5 -4 -4 -4 -4 -4 -4 -3 -3 -3 -2 -2 -2 --------- Run | Yrd Mat Sub Scr Fac Low Low Dat Pro Fac Upp Upp Zhi Pro Fac Ext Cet Arc Hub Res Arm Lab Res Tes Frg Total 20798 | 48 1152 1441 1902 682 1844 1931 116 869 560 641 968 394 936 606 1275 490 56 52 745 544 465 214 1263 1604 Wait 5830 | . 667 161 60 155 1199 1122 2 412 25 228 333 24 190 140 358 197 18 . 98 101 59 6 225 50 Move 13528 | 41 434 1185 1779 495 622 777 100 426 505 384 616 328 705 440 811 222 28 46 586 337 285 192 934 1250 Hop 5 | . . . . . . 5 . . . . . . . . . . . . . . . . . . Pick Up 118 | 1 15 4 22 2 1 3 2 . 6 4 . 4 6 3 1 3 . . 2 11 9 . 8 11 Fast Attach 143 | 6 3 4 6 . 2 4 . 3 2 2 2 13 8 4 4 10 . . 4 4 12 2 11 37 Attach 83 | . . 1 2 11 2 1 1 . 4 2 . 1 1 3 . 1 . . . 6 13 2 7 25 Detach 24 | . 1 1 . . . 2 1 . . . . . . . . . . . . . 7 1 4 7 Swap 48 | . 1 2 . 2 2 3 1 3 3 2 3 1 3 2 2 6 . 1 3 2 . 2 2 2 Drop 174 | . 1 4 26 4 2 6 2 . 5 4 3 16 15 6 4 14 . . 1 12 18 1 15 15 Fire 674 | . 30 79 . 6 9 . . . 4 . 3 7 8 8 28 37 10 3 50 64 62 6 56 204 Melee 49 | . . . 7 5 5 8 5 13 6 . . . . . . . . . . . . . . . Ram 4 | . . . . 2 . . 2 . . . . . . . . . . . . . . . . . Kick 8 | . . . . . . . . . . . . . . . 1 . . 2 1 . . . 1 3 Crush . | . . . . . . . . . . . . . . . . . . . . . . . . . Escape Stasis 4 | . . . . . . . . . . . . . . . 2 . . . . . . 2 . . Rewire 83 | . . . . . . . . 12 . . . . . . 64 . . . . 7 . . . . Trap . | . . . . . . . . . . . . . . . . . . . . . . . . . Miscellaneous 23 | . . . . . . . . . . 15 8 . . . . . . . . . . . . . Route ------- -11/Scrapyard -10/Materials (discovered 4 exits: [*Mat x2] / [*Min] / [*Sub]) -10/Subcaves (discovered 2 exits: [*Mat] / *Scr) -8/Scraptown (discovered 2 exits: *Fac x2) -6/Factory (discovered 2 exits: *Low x2) -6/Lower Caves -6/Lower Caves -6/Data Miner -5/Proximity Caves -5/Factory (discovered 2 exits: *Upp x2) -5/Upper Caves -5/Upper Caves -5/Zhirov -4/Proximity Caves -4/Factory (discovered 4 exits: Upp x2 / *Ext x2) -4/Extension (discovered 2 exits: *Res / *Cet) -4/Cetus (discovered 2 exits: *Res / *Arc) -4/Archives -4/Hub_04(d) -3/Research (discovered 4 exits: Res x3 / *Arm) -3/Armory -3/Lab -2/Research (discovered 2 exits: *Tes x2) -2/Testing (discovered 2 exits: [*Sec] / *Frg) -2/Protoforge History --------- Turn | Location | Event 36 | -11/Scrapyard | Discovered new exit (range 14) 72 | -11/Scrapyard | Entered Materials 252 | -10/Materials | Discovered new exit (range 16) 301 | -10/Materials | Build established: Mutant 1170 | -10/Materials | Discovered new exit (range 7) 1401 | -10/Materials | Discovered new exit (range 14) 1512 | -10/Materials | Discovered new exit (range 6) 1710 | -10/Materials | Entered Subcaves 1711 | -10/Subcaves | Approached by a straggling Scientist 1785 | -10/Subcaves | Learned location of Zion (-7) 1785 | -10/Subcaves | Met a Zionite searching for "candidates" 1801 | -10/Subcaves | Discovered new exit (range 6) 1803 | -10/Subcaves | Shifting Twisted Machinery released Mak. Light Armor Plating 1815 | -10/Subcaves | Shifting Twisted Machinery released Battle Rifle 1831 | -10/Subcaves | A swath of the cavern ceiling suddenly collapsed 2103 | -10/Subcaves | Visited triangular shrine 2113 | -10/Subcaves | Found Prototype Device 2113 | -10/Subcaves | Identified V3-11A's Pendant 2118 | -10/Subcaves | Befriended Subdweller 2403 | -10/Subcaves | Befriended Subdweller 2413 | -10/Subcaves | Befriended Subdweller 2553 | -10/Subcaves | Befriended Subdweller 2598 | -10/Subcaves | Befriended Subdweller 2598 | -10/Subcaves | Befriended Subdweller 2648 | -10/Subcaves | Shifting Twisted Machinery released Sub. Optics 2650 | -10/Subcaves | Shifting Twisted Machinery released Piercing Trap 3011 | -10/Subcaves | Shifting Twisted Machinery released Hvy. Riot Gun 3167 | -10/Subcaves | Shifting Twisted Machinery released Battle Cannon 3215 | -10/Subcaves | Ambushed by Subdwellers from Twisted Machinery 3218 | -10/Subcaves | Befriended Subdweller 3218 | -10/Subcaves | Befriended Subdweller 3603 | -10/Subcaves | Befriended Subdweller 3603 | -10/Subcaves | Befriended Subdweller 3762 | -10/Subcaves | Entered Scraptown 3762 | -8/Scraptown | Accompanied by 8 allies 3762 | -8/Scraptown | System corruption cleaned by C-Scrubber 3858 | -8/Scraptown | Delivered V3-11A's Pendant to T0-NE2 in exchange for information 4037 | -8/Scraptown | Discovered new exit (range 11) 4193 | -8/Scraptown | Visited Red Mages 4642 | -8/Scraptown | Visited TADAMA 4665 | -8/Scraptown | Visited Fellowship of the Rings 4692 | -8/Scraptown | Visited UFD Registry 4692 | -8/Scraptown | Registered with UFD as "Hardsys" 4753 | -8/Scraptown | Visited Curators Association 4785 | -8/Scraptown | Visited Observation Area 4846 | -8/Scraptown | Visited Infowarlord's Domain 4878 | -8/Scraptown | Visited Cartography Club 4897 | -8/Scraptown | Visited Research Penetration Think Tank 4933 | -8/Scraptown | Visited Supply Room 4963 | -8/Scraptown | Visited A0-MCA Data Center 4981 | -8/Scraptown | Visited Scrapoid Research Area 5004 | -8/Scraptown | Visited Derelict Rescue Squad 5024 | -8/Scraptown | Visited DA-N13 Charitable Foundation 5030 | -8/Scraptown | Found DCF Scrap (28 items) 5128 | -8/Scraptown | Given a C rating by A0-MCA 5770 | -8/Scraptown | Guru changed UFD alias to "Megacycle" 5778 | -8/Scraptown | Tech Extrapolator generated special schematic: Machine Rigger 5970 | -8/Scraptown | Found Exp. Sensor Array 6036 | -8/Scraptown | Found A0-MCA's Component Scanner 6078 | -8/Scraptown | Met Optimus 6078 | -8/Scraptown | Accepted into 0bPrime 6147 | -8/Scraptown | Discovered new exit (range 3) 6189 | -8/Scraptown | Entered Factory 6189 | -6/Factory | Accompanied by 6 allies 6189 | -6/Factory | Evolved 8 slots: Power x1, Propulsion x2, Utility x5 6269 | -6/Factory | Loaded intel: 8 recycling unit locations 6283 | -6/Factory | Tech Extrapolator generated special schematic: Deep Structural Scanner 6295 | -6/Factory | Identified exit to Lower Caves 6502 | -6/Factory | Build established: Derelict-Scout 6532 | -6/Factory | Spotted B-75 Beast 6604 | -6/Factory | Lost 6 allies 6618 | -6/Factory | Fabricated Deep Structural Scanner? 6664 | -6/Factory | Entered Lower Caves 7415 | -6/Lower Caves | Learned Factory trap positions 7437 | -6/Lower Caves | Encountered a Warlord checkpoint 8315 | -6/Lower Caves | Discovered new exit (range 6) 8324 | -6/Lower Caves | Identified exit to Lower Caves 8333 | -6/Lower Caves | Entered another Lower Caves area 8420 | -6/Lower Caves | Prototype Device suddenly appears! 8421 | -6/Lower Caves | Found Prototype Device 8421 | -6/Lower Caves | Identified Amulet of Y3-NDR 8486 | -6/Lower Caves | Joined by bewildered Wizard 8486 | -6/Lower Caves | Joined by bewildered Wizard 8487 | -6/Lower Caves | Joined by bewildered Wizard 8549 | -6/Lower Caves | Joined by bewildered Wizard 8863 | -6/Lower Caves | Joined by bewildered Wizard 8863 | -6/Lower Caves | Joined by bewildered Wizard 9402 | -6/Lower Caves | Tech Extrapolator generated special schematic: Energy Deflector 9871 | -6/Lower Caves | Discovered new exit (range 6) 9875 | -6/Lower Caves | Identified exit to Data Miner 9990 | -6/Lower Caves | Entered Data Miner 9990 | -6/Data Miner | Discovered new exit (range 6) 10002 | -6/Data Miner | Met Data Miner 10015 | -6/Data Miner | Learned location of Section 7 (-2) 10015 | -6/Data Miner | Acquired the access code to Warlord's prototype stash 10025 | -6/Data Miner | Received God Mode back door access code from Data Miner 10039 | -6/Data Miner | Destroyed Data Miner 10042 | -6/Data Miner | Found Prototype Hackware 10045 | -6/Data Miner | Found Prototype Hackware 10049 | -6/Data Miner | Data Conduit disabled 10074 | -6/Data Miner | Identified exit to Proximity Caves 10075 | -6/Data Miner | Entered Proximity Caves 10143 | -5/Proximity Caves | Joined by bewildered Wizard 10144 | -5/Proximity Caves | Joined by bewildered Wizard 10169 | -5/Proximity Caves | Joined by bewildered Wizard 10170 | -5/Proximity Caves | Joined by bewildered Wizard 10251 | -5/Proximity Caves | Identified exit to Factory 10272 | -5/Proximity Caves | Attracted the attention of an 0b10 checkpoint 10500 | -5/Proximity Caves | Received a Behemoth hack from an annoying Tinkerer 10789 | -5/Proximity Caves | Entered Factory 10789 | -5/Factory | Accompanied by 3 allies 10789 | -5/Factory | Evolved 2 slots: Utility x2 10790 | -5/Factory | Loaded intel: 79 trap records 10797 | -5/Factory | Identified Quantum Router 10798 | -5/Factory | Identified System Mapper 10800 | -5/Factory | Identified exit to Upper Caves 10836 | -5/Factory | Garrison activated, responded to threat 10878 | -5/Factory | Lost 3 allies 11088 | -5/Factory | Build established: Hacker-Scout 11089 | -5/Factory | Search patrols dispatched 11091 | -5/Factory | Loaded intel: 8 recycling unit locations 11091 | -5/Factory | Learned location of Protoforge (-2) 11128 | -5/Factory | Entered Upper Caves 11341 | -5/Upper Caves | Joined by bewildered Wizard 11342 | -5/Upper Caves | Joined by bewildered Wizard 11343 | -5/Upper Caves | Joined by bewildered Wizard 11393 | -5/Upper Caves | Joined by bewildered Wizard 11422 | -5/Upper Caves | Encountered a Warlord checkpoint 11460 | -5/Upper Caves | Found Alien Artifact 11501 | -5/Upper Caves | Learned Factory security intel 11516 | -5/Upper Caves | Discovered new exit (range 6) 11601 | -5/Upper Caves | Identified exit to Upper Caves 11607 | -5/Upper Caves | Entered another Upper Caves area 11607 | -5/Upper Caves | Accompanied by 4 allies 11798 | -5/Upper Caves | Found DCF Scrap (11 items) 11854 | -5/Upper Caves | Learned Factory emergency access door positions 11937 | -5/Upper Caves | Attracted the attention of an 0b10 checkpoint 11955 | -5/Upper Caves | Discovered new exit (range 10) 11960 | -5/Upper Caves | Identified exit to Zhirov 11987 | -5/Upper Caves | Joined by bewildered Wizard 12019 | -5/Upper Caves | Encountered a Warlord checkpoint 12026 | -5/Upper Caves | Learned Factory terminal intel 12087 | -5/Upper Caves | Spotted B-75 Beast 12089 | -5/Upper Caves | Befriended a Behemoth using the annoying Tinkerer's hack 12175 | -5/Upper Caves | Tech Extrapolator generated special schematic: Heat Bomb Trap 12297 | -5/Upper Caves | Entered Zhirov 12297 | -5/Zhirov | Accompanied by 5 allies 12298 | -5/Zhirov | Discovered new exit (range 3) 12311 | -5/Zhirov | Met Zhirov 12322 | -5/Zhirov | Learned location of Quarantine (-3) 12322 | -5/Zhirov | Learned location of Testing (-2) 12322 | -5/Zhirov | Learned location of Command (-1) 12325 | -5/Zhirov | Zhirov requested help retrieving the SGEMP Prototype 12339 | -5/Zhirov | Found Alien Artifact 12346 | -5/Zhirov | Found Alien Artifact 12346 | -5/Zhirov | Identified Integrated Reactor 12346 | -5/Zhirov | Installed Integrated Reactor, increased core energy generation (+10) 12453 | -5/Zhirov | Identified exit to Proximity Caves 12624 | -5/Zhirov | Build established: Hacker-Mutant 12705 | -5/Zhirov | Entered Proximity Caves 12705 | -4/Proximity Caves | Accompanied by 5 allies 12718 | -4/Proximity Caves | Attracted the attention of an 0b10 checkpoint 12870 | -4/Proximity Caves | Joined by bewildered Wizard 12871 | -4/Proximity Caves | Joined by bewildered Wizard 12971 | -4/Proximity Caves | Build established: Hacker-Skirmisher 13029 | -4/Proximity Caves | Encountered a Derelict guarding a broken Freighter 13061 | -4/Proximity Caves | Found Prototype Launcher 13061 | -4/Proximity Caves | Identified Point Singularity Launcher 13065 | -4/Proximity Caves | Found Prototype Launcher 13065 | -4/Proximity Caves | Identified Adv. Micro-nuke Launcher 13079 | -4/Proximity Caves | Found Prototype Launcher 13079 | -4/Proximity Caves | Identified Tactical Quantum Warhead 13084 | -4/Proximity Caves | Found Prototype Device 13084 | -4/Proximity Caves | Identified Exp. Transmission Jammer 13262 | -4/Proximity Caves | Discovered new exit (range 4) 13268 | -4/Proximity Caves | Identified exit to Factory 13362 | -4/Proximity Caves | Build established: Hacker-Mutant 13429 | -4/Proximity Caves | Joined by bewildered Wizard 13647 | -4/Proximity Caves | Entered Factory 13647 | -4/Factory | Accompanied by 5 allies 13647 | -4/Factory | Evolved 2 slots: Utility x2 13648 | -4/Factory | Identified exit to Extension 13651 | -4/Factory | Loaded intel: 25 terminal locations 13795 | -4/Factory | Identified exit to Upper Caves 13847 | -4/Factory | Loaded intel: 8 recycling unit locations 13977 | -4/Factory | Build established: Hacker-Skirmisher 14071 | -4/Factory | Identified Transdimensional Reconstructor 14217 | -4/Factory | Entered Extension 14217 | -4/Extension | Accompanied by 5 allies 14264 | -4/Extension | Loaded intel: 2 recycling unit locations 14291 | -4/Extension | Rescued a captive Derelict 14350 | -4/Extension | Rescued a captive Derelict 14465 | -4/Extension | Lost 6 allies 14512 | -4/Extension | Rescued a captive Derelict 14888 | -4/Extension | Spotted B-86 Titan 14914 | -4/Extension | Spotted B-86 Titan 14932 | -4/Extension | Allies destroyed B-86 Titan 14963 | -4/Extension | Lost 4 allies 15055 | -4/Extension | Repaired Cld. Phase Cannon 15268 | -4/Extension | Rescued a captive Derelict 15270 | -4/Extension | Rescued a captive Derelict 15324 | -4/Extension | Rescued A7 15395 | -4/Extension | Discovered new exit (range 10) 15396 | -4/Extension | Discovered new exit (range 6) 15410 | -4/Extension | Identified exit to Cetus 15440 | -4/Extension | Entered Cetus 15440 | -4/Cetus | Accompanied by 7 allies (A7) 15445 | -4/Cetus | Acquired a Cetus Manufacturing Module code from A7 15461 | -4/Cetus | Spotted Cetus Guard 15461 | -4/Cetus | Spotted Cetus Guard 15461 | -4/Cetus | Spotted Cetus Guard 15461 | -4/Cetus | Spotted Cetus Guard 15474 | -4/Cetus | Allies destroyed Cetus Guard 15479 | -4/Cetus | Allies destroyed Cetus Guard 15485 | -4/Cetus | Allies destroyed Cetus Guard 15494 | -4/Cetus | Destroyed Cetus Guard 15519 | -4/Cetus | Lost 4 allies 15566 | -4/Cetus | Started Cetus Manufacturing Module 15591 | -4/Cetus | Manufactured an Enhanced Grunt 15592 | -4/Cetus | Discovered new exit (range 16) 15616 | -4/Cetus | Manufactured an Enhanced Grunt 15641 | -4/Cetus | Manufactured an Enhanced Grunt 15666 | -4/Cetus | Manufactured an Enhanced Grunt 15691 | -4/Cetus | Manufactured an Enhanced Grunt 15728 | -4/Cetus | Build established: Hacker-Mutant 15735 | -4/Cetus | Spotted Cetus Guard 15735 | -4/Cetus | Spotted Cetus Guard 15748 | -4/Cetus | Spotted Cetus Guard 15769 | -4/Cetus | Allies destroyed Cetus Guard 15772 | -4/Cetus | Spotted Cetus Guard 15776 | -4/Cetus | Allies destroyed Cetus Guard 15791 | -4/Cetus | Allies destroyed Cetus Guard 15804 | -4/Cetus | Lost 6 allies 15829 | -4/Cetus | Discovered new exit (range 15) 15835 | -4/Cetus | Met Revision 17 15927 | -4/Cetus | Murdered A7 15929 | -4/Cetus | Extracted ID and sensor layout for unrecognized location from A7's data core 15941 | -4/Cetus | Identified exit to Archives 15946 | -4/Cetus | Entered Archives 15946 | -4/Archives | Accompanied by 1 ally 15999 | -4/Archives | Discovered new exit (range 13) 16009 | -4/Archives | Identified exit to Hub_04(d) 16010 | -4/Archives | Entered Hub_04(d) 16025 | -4/Hub_04(d) | Discovered new exit (range 16) 16040 | -4/Hub_04(d) | Identified exit to Research 16054 | -4/Hub_04(d) | Network Hub disabled 16057 | -4/Hub_04(d) | Spotted Lightning 16057 | -4/Hub_04(d) | Spotted Lightning 16057 | -4/Hub_04(d) | Spotted Lightning 16063 | -4/Hub_04(d) | Entered Research 16063 | -3/Research | Evolved 2 slots: Utility x2 16082 | -3/Research | Found Quantum Capacitor 16125 | -3/Research | Repaired Adv. Shield Generator 16156 | -3/Research | Identified exit to Research 16263 | -3/Research | Revision forces began assault on 0b10 16302 | -3/Research | Met up with Revision 17++ 16318 | -3/Research | Build established: Hacker-Skirmisher 16327 | -3/Research | Fabricated B-60 Warrior? 16403 | -3/Research | Spotted B-86 Titan 16455 | -3/Research | Lost 3 allies 16468 | -3/Research | Destroyed B-86 Titan 16541 | -3/Research | Spotted B-86 Titan 16557 | -3/Research | Destroyed B-86 Titan 16677 | -3/Research | Loaded intel: 5 recycling unit locations 16745 | -3/Research | Discovered new exit (range 4) 16747 | -3/Research | Identified exit to Armory 16758 | -3/Research | Entered Armory 16759 | -3/Armory | Met VL-GR5, who suggested a friendly competition 16880 | -3/Armory | Repaired Exp. Sensor Array 16971 | -3/Armory | Found Exp. Sensor Array 16974 | -3/Armory | Found Spectral Analyzer 17133 | -3/Armory | Build established: Hacker-Mutant 17302 | -3/Armory | Found Corrupted Prototype Protection 17303 | -3/Armory | Warped through subspace to slip node 17303 | -3/Armory | Discovered new exit (range 1) 17303 | -3/Armory | Identified exit to Lab 17304 | -3/Armory | Entered Lab 17306 | -3/Lab | Discovered exit to Research (range 9) 17316 | -3/Lab | Hidden lab's door opened automatically 17316 | -3/Lab | Sensor layout match revealed 17317 | -3/Lab | Gained access to the hidden lab's interior 17343 | -3/Lab | Found Alien Artifact 17343 | -3/Lab | Identified Integrated Dissipator 17343 | -3/Lab | Installed Integrated Dissipator, increased core heat dissipation (+20) 17349 | -3/Lab | Found Alien Artifact 17349 | -3/Lab | Identified Core Regenerator 17349 | -3/Lab | Used Core Regenerator, restored core integrity (+190) 17445 | -3/Lab | Found Prototype Protection 17445 | -3/Lab | Identified Hvy. Regenerative Plating (x2) 17480 | -3/Lab | Detected by scanners 17496 | -3/Lab | Confronted by A5 17562 | -3/Lab | System corruption reached 10% 17613 | -3/Lab | Destroyed A5 17642 | -3/Lab | Found Prototype Energy Cannon 17642 | -3/Lab | Identified Warp Cannon 17651 | -3/Lab | Found Prototype Energy Gun 17651 | -3/Lab | Identified Tachyon Dispersion Ray 17705 | -3/Lab | Unable to decrypt terminal 17705 | -3/Lab | Found Alien Artifact 17705 | -3/Lab | Identified LC Capacitor 17785 | -3/Lab | Found Quantum Router 17841 | -3/Lab | Found Transdimensional Reconstructor 17891 | -3/Lab | Entered Research 17891 | -2/Research | Evolved 2 slots: Propulsion x1, Utility x1 17903 | -2/Research | Central database locked down 18027 | -2/Research | Identified exit to Testing 18128 | -2/Research | Entered Testing 18138 | -2/Testing | Found Prototype Leg 18138 | -2/Testing | Identified Myomer Exoskeleton 18197 | -2/Testing | Build established: Wizard-Mutant 18301 | -2/Testing | Found Prototype Energy Cannon 18301 | -2/Testing | Identified Cld. Nova Cannon 18453 | -2/Testing | Found Prototype Ballistic Cannon 18453 | -2/Testing | Identified Perforator 18521 | -2/Testing | Repaired Particle Accelerator 18637 | -2/Testing | Repaired Exp. Sensor Array 18885 | -2/Testing | Spotted PP-A0QY2IOEWL 18954 | -2/Testing | Intercept squad dispatched 18969 | -2/Testing | Spotted Tracker 18970 | -2/Testing | Spotted Tracker 18979 | -2/Testing | Destroyed Tracker 18982 | -2/Testing | Destroyed Tracker 18987 | -2/Testing | Found Prototype Processor 18987 | -2/Testing | Identified Exp. Targeting Computer 18996 | -2/Testing | Found Prototype Energy Cannon 18996 | -2/Testing | Identified Potential Cannon 19002 | -2/Testing | Spotted Combat Programmer 19003 | -2/Testing | Spotted Combat Programmer 19004 | -2/Testing | Destroyed Combat Programmer 19008 | -2/Testing | Destroyed Combat Programmer 19023 | -2/Testing | Found Potential Cannon 19249 | -2/Testing | Build established: Hacker-Mutant 19400 | -2/Testing | Spotted Fortress 19406 | -2/Testing | Intercept squad dispatched 19415 | -2/Testing | Spotted Tracker 19416 | -2/Testing | Spotted Tracker 19417 | -2/Testing | Spotted Tracker 19423 | -2/Testing | Destroyed Tracker 19429 | -2/Testing | Destroyed Tracker 19442 | -2/Testing | Spotted Combat Programmer 19443 | -2/Testing | Destroyed Tracker 19445 | -2/Testing | Warped through subspace 19465 | -2/Testing | Discovered new exit (range 5) 19465 | -2/Testing | Discovered new exit (range 6) 19468 | -2/Testing | Identified exit to Protoforge 19469 | -2/Testing | Entered Protoforge 19474 | -2/Protoforge | Lost 5 parts (1p3u1w) 19550 | -2/Protoforge | Superfortress began startup sequence 19556 | -2/Protoforge | Spotted Hotshot 19558 | -2/Protoforge | Spotted Hotshot 19597 | -2/Protoforge | Destroyed Hotshot 19630 | -2/Protoforge | Destroyed Hotshot 19861 | -2/Protoforge | System corruption reached 10% 19909 | -2/Protoforge | Intercept squad dispatched 19921 | -2/Protoforge | Spotted Hotshot 19922 | -2/Protoforge | Spotted Hotshot 19923 | -2/Protoforge | Destroyed Hotshot 19930 | -2/Protoforge | Spotted Tracker 19931 | -2/Protoforge | Spotted Tracker 19962 | -2/Protoforge | Destroyed Tracker 19967 | -2/Protoforge | Spotted Combat Programmer 19970 | -2/Protoforge | Destroyed Combat Programmer 19979 | -2/Protoforge | Destroyed Hotshot 19991 | -2/Protoforge | Spotted Combat Programmer 19999 | -2/Protoforge | Destroyed Combat Programmer 20004 | -2/Protoforge | Build established: Scavenger-Mutant 20012 | -2/Protoforge | Lost 5 parts (2p3u) 20027 | -2/Protoforge | Destroyed Tracker 20219 | -2/Protoforge | First assault squad dispatched 20323 | -2/Protoforge | Spotted EXE-6 20323 | -2/Protoforge | Spotted EXE-6 20338 | -2/Protoforge | Destroyed EXE-6 20356 | -2/Protoforge | Destroyed EXE-6 20368 | -2/Protoforge | Found Prototype Processor 20368 | -2/Protoforge | Identified Exp. Armor Integrity Analyzer 20373 | -2/Protoforge | Lost 3 parts (2p1w) 20378 | -2/Protoforge | Spotted Decapitator 20378 | -2/Protoforge | Spotted Decapitator 20393 | -2/Protoforge | Destroyed Decapitator 20397 | -2/Protoforge | Found Prototype Slashing Weapon 20444 | -2/Protoforge | Intercept squad dispatched 20458 | -2/Protoforge | UFD initiated attack on Protoforge (Readiness: Adequate) 20458 | -2/Protoforge | Loaded intel: 3 recycling unit locations 20464 | -2/Protoforge | Spotted Tracker 20464 | -2/Protoforge | Spotted Tracker 20466 | -2/Protoforge | Warp Cannon suddenly broke down 20469 | -2/Protoforge | Destroyed Tracker 20491 | -2/Protoforge | Core integrity fell below 50% 20491 | -2/Protoforge | Destroyed Tracker 20517 | -2/Protoforge | Lost 6 parts (2n3u1w) 20548 | -2/Protoforge | Optimus greeted in Protoforge 20552 | -2/Protoforge | Lost 4 allies 20605 | -2/Protoforge | Spotted Overlord 20642 | -2/Protoforge | Spotted AP7-3 20645 | -2/Protoforge | Found Prototype Device 20645 | -2/Protoforge | Identified Exp. Weapon Cycler 20674 | -2/Protoforge | Spotted Striker 20678 | -2/Protoforge | Spotted Striker 20691 | -2/Protoforge | Found Scrap Suit 20717 | -2/Protoforge | Lost 6 allies 20824 | -2/Protoforge | Intercept squad dispatched 20836 | -2/Protoforge | Spotted Tracker 20836 | -2/Protoforge | Spotted Tracker 20846 | -2/Protoforge | Spotted Striker 20846 | -2/Protoforge | Spotted Executioner 20873 | -2/Protoforge | Spotted Combat Programmer 20883 | -2/Protoforge | Spotted Combat Programmer 20890 | -2/Protoforge | Combat Programmer assimilated allied 8D-65E(j) 20906 | -2/Protoforge | Spotted Executioner 20927 | -2/Protoforge | Lost 7 parts (2p2n3u) 20932 | -2/Protoforge | Found Prototype Device 20932 | -2/Protoforge | Identified Adv. Kinecellerator 20933 | -2/Protoforge | Lost 23 allies 20985 | -2/Protoforge | Spotted Executioner 21051 | -2/Protoforge | Spotted Executioner 21057 | -2/Protoforge | Spotted Striker 21079 | -2/Protoforge | Spotted Striker 21083 | -2/Protoforge | Spotted Executioner 21130 | -2/Protoforge | Spotted Executioner 21131 | -2/Protoforge | Spotted Hotshot 21133 | -2/Protoforge | Spotted Executioner 21133 | -2/Protoforge | Spotted Executioner 21143 | -2/Protoforge | Spotted Striker 21145 | -2/Protoforge | Spotted Striker 21174 | -2/Protoforge | Lost 7 allies 21175 | -2/Protoforge | Core integrity fell below 20% 21240 | -2/Protoforge | Spotted Hotshot 21251 | -2/Protoforge | Spotted Hotshot 21253 | -2/Protoforge | Spotted Hotshot 21259 | -2/Protoforge | Spotted Hotshot 21280 | -2/Protoforge | Destroyed Hotshot 21295 | -2/Protoforge | Self-destructed Last Messages --------------- not involved in other operations escort to target. 21263_ Acquired Power Amplifier. 21265_ Acquired 73 matter. 21269_ Ovr. Flexi-carbon Leg suddenly begins malfunctioning. 21277_ Slug penetrates Wall. 21278_ Power Amplifier destroyed. 21280_ Slug penetrates Hotshot. 21280_ Hotshot destroyed. 21283_ Slug penetrates Wall. 21287_ KS7E1MBT JMM, QOA1:Z>WPZE#BSENT0R 21288_ Slug penetrates Wall. 21288_ Adv. Kinecellerator destroyed. 21289_ Hotshot activates shielding mode. 21290_ Slug penetrates Hotshot. 21292_ Hotshot activates shielding mode. 21294_ Slug penetrates Wall. 21294_ Helical Railgun destroyed. 21294_ Ovr. Flexi-carbon Leg destroyed. Map ----- +----------------------------------------------------+ | ????????##??????#?#####???###?##############???##? | | ????????##??????#?######?####?###################? | | ????????##??????#?###???????#?#???? ?? #######? | | ????????##??????#?###???????#?#???? ??" # ## | | ?????############?###???????#?#???" """ # | | #################?###???????#?#???" """ # | | #######??######## ###???????#?# ?? # | | ????###??######## ###########?# ?"" """ # ## | | ????#??????? ??????# """ """ ## ## | | ????#?????? ??????# """ """ ## ## | | ????#??????? ??????+ ## ## | | ??????????? """" """" ??????# """ """ ## ## | | ????#????"" """" """" ######## """ """ ## %## | | ????#??"""" """" """" ######## """ "" %## % ## | | ????# """" """"^"""" #######; ## ### | | ????# ;##;;"#####"# "" | | ##### !=i * | | # g!%% % ! % % | | # g % !%!%* | | ########""" """######" g;#;;##""##### ## | | ## #"""T"""####### g# ############+#### | | ## ############### ; ##??????## | | ## # " ;##???????## " " " | | ##""" # " ##????????## " " " | | ##""" # ##????????## " " " | | ##""" # @ ############ | | ## # ####;#+############ | | ## # ^ # ## """ | | #+######+### # """ ## """S"" | | % # """ ## """""" | | # " "" """ ######### | | # ""R"" ########## | | # """" #????????? | | # ########## %######## #########? | | # ########## #################################? | | # ########## # ##?#############?????##? | | # ### # ##?##????????????????##? | | # ### # ##?##????????????????##? | | ### %# ##?##????????????????##? | | # ### +% ##?##????????????????##? | | # ### ### %# ##?##????????????????### | | # ### ### # ##?##????????????????### | | # ### ### # ##?###?????????????????? | | # ### ###################?###?????????????????? | | # ### ######?#####?????????##?????????????????? | | #+### ##????????##?????????##?????????????????? | | # ##????????##?????????##?????????????????? | | # ##????????##?????????##?????????????????? | | "" # ##????????###?##?######?????????????????? | | # ##????????###?##?######?????????????????? | +----------------------------------------------------+ Best States ------------- Heat Dissipation 152 Energy Generation 65 Energy Capacity 1030 Matter Stores 300 Matter Capacity 300 Sight Range 23 Robot Scan Range 20 Terrain Scan Density 10 Jamming Range 22 Power Amplification 40 Base Temperature (-) 200 Armor Coverage 1425 Resistance: KI 10 Resistance: TH 15 Propulsion Shielding 90 Weapon Cycling 30 Evasion (%) 57 Targeting Accuracy 12 Armor Integrity Analysis 50 Recoil Reduction 2 Matter Filtering 50 Energy Filtering 30 Particle Charging 30 Kinecelleration 50 Offensive Hacking 30 Defensive Hacking 50 Item Schematics ----------------- Mak. Hacking Suite | -8/Scraptown | Extrapolated Mak. Coolant Network | -8/Scraptown | Extrapolated Lgt. Humpback | -8/Scraptown | Extrapolated Machine Rigger | -8/Scraptown | Extrapolated 0b10 Decoder Chip [Skirmisher] | -8/Scraptown | Extrapolated Deep Structural Scanner | -6/Factory | Extrapolated Mak. Targeting Computer | -6/Factory | Extrapolated Mak. Leg | -6/Factory | Extrapolated Mak. Medium Armor Plating | -6/Lower Caves | Extrapolated Mak. Ablative Armor | -6/Lower Caves | Extrapolated Arc Thrower | -6/Lower Caves | Extrapolated Barrage Gun | -6/Lower Caves | Extrapolated Hvy. Battle Rifle | -6/Lower Caves | Extrapolated Mak. Spear | -6/Lower Caves | Extrapolated 0b10 Decoder Chip [Generic] | -6/Lower Caves | Extrapolated 0b10 Decoder Chip [Scout] | -6/Lower Caves | Extrapolated Mak. Light Armor Plating | -6/Lower Caves | Extrapolated Energy Deflector | -6/Lower Caves | Extrapolated Combat Drone Bay | -6/Data Miner | Free Lgt. Regenerative Plating | -6/Data Miner | Free Enh. Armored Leg | -6/Data Miner | Free Imp. Matter Compressor | -6/Data Miner | Free Hvy. Proton Missile Launcher | -6/Data Miner | Free Hvy. Siege Treads | -6/Data Miner | Free Lrn. Sensor Array | -6/Data Miner | Free HERF Cannon | -6/Data Miner | Free Neutrino Core | -6/Data Miner | Free Imp. Remote Force Field | -6/Data Miner | Free Imp. Thunder Leg | -6/Data Miner | Free Q-thruster | -6/Data Miner | Free Mak. System Shield | -5/Factory | Extrapolated Multitool | -5/Factory | Extrapolated Mak. Thermal Plating | -5/Upper Caves | Extrapolated Hvy. Beamcaster | -5/Upper Caves | Extrapolated Plasma Flamer | -5/Upper Caves | Extrapolated Heat Bomb Trap | -5/Upper Caves | Extrapolated Assault Drone Bay | -5/Zhirov | Free Exp. Heat Sink | -5/Zhirov | Free Exp. Optical Array | -5/Zhirov | Free Imp. Arc Thrower | -5/Zhirov | Free Mak. Terrain Scanner | -5/Zhirov | Extrapolated Mak. Terrain Scan Processor | -5/Zhirov | Extrapolated Mak. Core Shielding | -5/Zhirov | Extrapolated Centrium Medium Armor Plating | -3/Research | Scanalyzed Robot Schematics ------------------ R-10 Processor | -6/Data Miner | Free X-67 Chaingunner | -6/Data Miner | Free S-27 Virus | -6/Data Miner | Free W-44 Eye | -6/Data Miner | Free B-60 Warrior | -6/Data Miner | Free Fabricated ------------ Deep Structural Scanner | x1 | -6/Factory B-60 Warrior | x3 | -3/Research Repaired ---------- Cld. Phase Cannon | 73% | -4/Extension Adv. Shield Generator | 24% | -3/Research Exp. Sensor Array | 10% | -3/Armory Particle Accelerator | 6% | -2/Testing Exp. Sensor Array | 20% | -2/Testing Studied --------- Quantum Reactor | -3/Research | Hacked Centrium Leg | -2/Research | Hacked Com. HERF Cannon | -2/Research | Hacked Enh. Nova Cannon | -2/Testing | Hacked Particle Reactor | -2/Testing | Hacked Alien Tech Used ----------------- Integrated Reactor Transdimensional Reconstructor Integrated Dissipator Core Regenerator LC Capacitor Achievements -------------- Longdome?! Rodney's Helpers SUBSUB Challenges ------------ None Game ------ Seed FieldthrustMakeshiftAxe Manual? 0 Play Time 02:56:07 Cumulative 562.3 hours Start 2025.11.18 @ 15:37:47 End 2025.11.19 @ 10:54:29 Sessions 3 Manual Loads 0 Difficulty Rogue Special Mode None Game No. 897 Rogue 742 Adventurer 148 Explorer 7 Win Type - Total 26 Types 20/1/4/1/0/0/0/0/0/0 Lore% 81 Gallery% 83 Achievement% 68 Wizard Run 0 Options --------- Layout 1 ASCII 0 Keyboard 0 Movement Numpad Keybinds 0 Fullscreen 2 Font 24/Smallcaps Map View 50x35 Zoom Use 0% Tactical HUD 1 Map Filters NONE Filters NONE Steam 1 RUN: 84eb90a7-3444-44f7-a739-2aea711f190d